bitfinex/quotes_BTCUSD_20251007
["timestamp","ask_amount","ask_price","bid_price","bid_amount"]
[1759818207557,0.83332284,124170.0,124160.0,0.00114468]
[1759818212298,0.33303409,124170.0,124160.0,0.00114468]
[1759818212713,0.83332284,124170.0,124160.0,0.00114468]
[1759818213328,0.33303409,124170.0,124160.0,0.00114468]
[1759818213954,0.83332284,124170.0,124160.0,0.00114468]
[1759818214160,0.33303409,124170.0,124160.0,0.00114468]
[1759818214363,0.78908641,124170.0,124160.0,0.00114468]
[1759818216197,1.28637516,124170.0,124160.0,0.00114468]
[1759818216361,0.81526203,124170.0,124160.0,0.00114468]
[1759818217255,0.30097328,124170.0,124160.0,0.00114468]
[1759818217451,0.88125883,124170.0,124160.0,0.00114468]
[1759818217623,0.89925883,124170.0,124160.0,0.00114468]
[1759818218229,0.8843036,124170.0,124160.0,0.00114468]
[1759818218500,0.89928362,124170.0,124160.0,0.00114468]
[1759818221482,0.39899487,124170.0,124160.0,0.00114468]
[1759818221888,0.89928362,124170.0,124160.0,0.00114468]
[1759818222543,0.81928682,124170.0,124160.0,0.00114468]
[1759818222744,1.04636682,124170.0,124160.0,0.00114468]
[1759818224505,1.54665557,124170.0,124160.0,0.00114468]
[1759818224714,1.31957557,124170.0,124160.0,0.00114468]
[1759818224942,0.54607807,124170.0,124160.0,0.00114468]
[1759818225141,0.62607487,124170.0,124160.0,0.00114468]
[1759818225532,1.12691985,124170.0,124160.0,0.00114468]
[1759818226387,1.1269333,124170.0,124160.0,0.00114468]
[1759818227214,0.62608832,124170.0,124160.0,0.00114468]
[1759818227422,1.0469365,124170.0,124160.0,0.00114468]
[1759818229407,0.54609152,124170.0,124160.0,0.00114468]
[1759818229624,1.0469365,124170.0,124160.0,0.00114468]
[1759818231218,0.54609152,124170.0,124160.0,0.00114468]
[1759818232111,0.31901152,124170.0,124160.0,0.00114468]
[1759818232337,1.09494331,124170.0,124160.0,0.00114468]
[1759818232540,0.86786331,124170.0,124160.0,0.00114468]
[1759818232759,0.59409833,124170.0,124160.0,0.00114468]
[1759818232969,0.36701833,124170.0,124160.0,0.00114468]
[1759818233173,0.59409833,124170.0,124160.0,0.00114468]
[1759818234027,0.54609152,124170.0,124160.0,0.00114468]
[1759818235318,0.31153065,124170.0,124160.0,0.00114468]
[1759818235952,0.30636065,124170.0,124160.0,0.00114468]
[1759818236432,0.31156065,124170.0,124160.0,0.00114468]
[1759818238382,0.29656718,124170.0,124160.0,0.00114468]
[1759818238801,0.36583755,124170.0,124160.0,0.00114468]
[1759818245478,0.38082553,124170.0,124160.0,0.00114468]
[1759818246338,0.38831873,124170.0,124160.0,0.00114468]
[1759818248679,0.60790553,124170.0,124160.0,0.00114468]
[1759818249594,0.60790395,124170.0,124160.0,0.00114468]
[1759818250039,0.61539696,124170.0,124160.0,0.00114468]
[1759818250250,0.61539701,124170.0,124160.0,0.00114468]
[1759818250660,0.95539701,124170.0,124160.0,0.00114468]
[1759818254928,0.95539701,124170.0,124120.0,0.04235414]
[1759818255143,0.95539701,124170.0,124110.0,0.16945022]
[1759818255144,0.16110842,124140.0,124130.0,0.08372]
[1759818255407,0.24423048,124140.0,124130.0,0.08380038]
[1759818255821,0.24423048,124140.0,124130.0,0.08439812]
[1759818256381,0.25623048,124140.0,124130.0,0.31147812]
[1759818256578,0.25623048,124140.0,124130.0,0.00067812]
[1759818256579,0.30670862,124140.0,124130.0,0.00067812]
[1759818256788,0.53386862,124140.0,124130.0,0.00067812]
[1759818257006,0.57303036,124140.0,124130.0,0.00067812]
[1759818257348,1.05889426,124140.0,124130.0,0.00067812]
[1759818257576,1.43793057,124140.0,124130.0,0.00067812]
[1759818257774,1.21277057,124140.0,124130.0,0.00067812]
[1759818258011,1.52191376,124140.0,124130.0,0.00067812]
[1759818258427,1.51991376,124140.0,124130.0,0.00067812]
[1759818258605,0.79174878,124140.0,124130.0,0.00067812]
[1759818258786,1.51991376,124140.0,124130.0,0.00067812]
[1759818258960,1.29259376,124140.0,124130.0,0.00067812]
[1759818259175,1.51991376,124140.0,124130.0,0.00067812]
[1759818259582,1.29959376,124140.0,124130.0,0.00067812]
[1759818259784,1.52691376,124140.0,124130.0,0.00067812]
[1759818260250,1.29959376,124140.0,124130.0,0.00067812]
[1759818260446,1.52691376,124140.0,124130.0,0.00067812]
[1759818262934,1.02606878,124140.0,124130.0,0.00067812]
[1759818263349,1.52691376,124140.0,124130.0,0.00067812]
[1759818263571,1.29959376,124140.0,124130.0,0.00067812]
[1759818263779,1.52691376,124140.0,124130.0,0.00067812]
[1759818264408,1.50445704,124140.0,124130.0,0.00067812]
[1759818264769,1.27713704,124140.0,124130.0,0.00067812]
[1759818265305,1.52683747,124140.0,124130.0,0.00067812]
[1759818266184,0.16116035,124100.0,124090.0,0.0002]
[1759818266395,0.24428241,124100.0,124090.0,0.00069915]
[1759818267442,0.24628241,124100.0,124090.0,0.00069915]
[1759818267644,0.25828241,124100.0,124090.0,0.00069915]
[1759818268379,0.26039241,124100.0,124090.0,0.00069915]
[1759818268587,0.26349241,124100.0,124090.0,0.00069915]
[1759818268791,0.2824676,124100.0,124090.0,0.00069915]
[1759818269223,0.2845776,124100.0,124090.0,0.00069915]
[1759818269428,0.2824676,124100.0,124090.0,0.00069915]
[1759818270806,0.32714026,124100.0,124090.0,0.00069915]
[1759818270935,0.2824676,124100.0,124090.0,0.00069915]
[1759818271830,0.2824676,124100.0,124090.0,0.16266983]
[1759818271963,0.25828241,124100.0,124090.0,0.16266983]
[1759818273643,0.25828241,124100.0,124090.0,0.00149649]
[1759818274723,0.25828241,124100.0,124090.0,0.16266983]
[1759818275149,0.25828241,124100.0,124090.0,0.00149649]
[1759818275544,0.25828241,124100.0,124090.0,0.16266983]
[1759818275545,0.17516035,124100.0,124090.0,0.16266983]
[1759818276929,0.014,124100.0,124090.0,0.86510929]
[1759818277147,0.014,124100.0,124090.0,1.20299976]
[1759818277985,0.014,124100.0,124090.0,0.55699976]
[1759818278398,0.014,124100.0,124090.0,1.20319976]
[1759818278608,0.014,124100.0,124090.0,0.55699976]
[1759818278842,0.014,124100.0,124090.0,0.83804786]
[1759818279054,0.014,124100.0,124090.0,0.50266983]
[1759818279267,0.014,124100.0,124090.0,0.47386983]
[1759818279268,0.09712206,124100.0,124090.0,0.47386983]
[1759818279708,0.09712206,124100.0,124090.0,0.16266983]
[1759818280123,0.09712206,124100.0,124090.0,0.39018983]
[1759818280333,0.09712206,124100.0,124090.0,0.47390983]
[1759818280552,0.09712206,124100.0,124090.0,0.16266983]
[1759818280755,0.09712206,124100.0,124090.0,0.47390983]
[1759818281569,0.25828241,124100.0,124090.0,0.47390983]
[1759818281748,0.25828241,124100.0,124090.0,0.31273649]
[1759818281969,0.25828241,124100.0,124090.0,0.47390983]
[1759818282388,0.26039241,124100.0,124090.0,0.00149649]
[1759818282604,0.30043644,124100.0,124090.0,0.31273649]
[1759818282808,0.30254644,124100.0,124090.0,0.31273649]
[1759818283038,0.30549644,124100.0,124090.0,0.31273649]
[1759818283271,0.30549644,124100.0,124090.0,0.00149649]
[1759818283507,0.30549644,124100.0,124090.0,0.22901649]
[1759818283716,0.30549644,124100.0,124090.0,0.31273649]
[1759818283900,0.30254644,124100.0,124090.0,0.31273649]
[1759818284108,0.30043644,124100.0,124090.0,0.31273649]
[1759818284515,0.30043644,124100.0,124090.0,0.47390983]
[1759818284716,0.09712206,124100.0,124090.0,0.47390983]
[1759818285329,0.25828241,124100.0,124090.0,0.47390983]
[1759818286139,0.09712206,124100.0,124090.0,0.47390983]
[1759818286441,0.25828241,124100.0,124090.0,0.47390983]
[1759818287414,0.09712206,124100.0,124090.0,0.47390983]
[1759818287827,0.25828241,124100.0,124090.0,0.47390983]
[1759818288031,0.25828241,124100.0,124090.0,0.22897649]
[1759818288367,0.25828241,124100.0,124090.0,0.31269649]
[1759818290226,0.25828241,124100.0,124090.0,0.47386983]
[1759818291096,0.25828241,124100.0,124090.0,0.31269649]
[1759818291525,0.26039241,124100.0,124090.0,0.31269649]
[1759818291738,0.30565114,124100.0,124090.0,0.00149649]
[1759818292159,0.30565114,124100.0,124090.0,0.31265649]
[1759818292379,0.16117334,124090.0,124080.0,0.15768268]
[1759818292596,0.16673089,124090.0,124080.0,0.08372]
[1759818292808,0.24985295,124090.0,124080.0,0.08372]
[1759818293246,0.16118633,124080.0,124070.0,0.19779703]
[1759818293451,0.24430839,124080.0,124070.0,0.50907703]
[1759818294087,0.08312206,124080.0,124070.0,0.50907703]
[1759818295408,0.08412206,124080.0,124070.0,0.50907703]
[1759818295827,0.09112206,124080.0,124070.0,0.50907703]
[1759818296040,0.09112206,124080.0,124070.0,0.42535703]
[1759818296041,0.25736839,124080.0,124070.0,0.42535703]
[1759818296259,0.25230839,124080.0,124070.0,0.50907703]
[1759818296495,0.25441839,124080.0,124070.0,0.0002]
[1759818296710,0.25736839,124080.0,124070.0,0.0002]
[1759818296934,0.25736839,124080.0,124070.0,0.31148]
[1759818297408,0.25636839,124080.0,124070.0,0.22776]
[1759818297626,0.29780907,124080.0,124070.0,0.22776]
[1759818298062,0.29880907,124080.0,124070.0,0.22776]
[1759818298283,0.31769942,124080.0,124070.0,0.22776]
[1759818298497,0.26431874,124080.0,124070.0,0.22776]
[1759818298718,0.27131874,124080.0,124070.0,0.2281588]
[1759818298939,0.29131874,124080.0,124070.0,0.2281588]
[1759818299159,0.11012206,124080.0,124070.0,0.38935812]
[1759818300213,0.27130839,124080.0,124070.0,0.38935812]
[1759818300630,0.25130839,124080.0,124070.0,0.38935812]
[1759818300861,0.24430839,124080.0,124070.0,0.38935812]
[1759818301069,0.24430839,124080.0,124070.0,0.0015988]
[1759818301070,0.30666666,124080.0,124070.0,0.0015988]
[1759818301274,0.30666666,124080.0,124070.0,0.2295188]
[1759818301479,0.30966666,124080.0,124070.0,0.2295188]
[1759818302439,0.30966666,124080.0,124070.0,0.0015988]
[1759818302652,0.30966666,124080.0,124070.0,0.2295988]
[1759818304356,0.30966666,124080.0,124070.0,0.2295588]
[1759818305357,0.30966666,124080.0,124070.0,0.0015988]
[1759818305586,0.00805996,124070.0,124040.0,1.71910813]
[1759818305842,0.16323531,124050.0,124040.0,1.71910813]
[1759818306063,0.2642366,124050.0,124040.0,1.71910813]
[1759818306306,0.6042366,124050.0,124040.0,1.11445548]
[1759818306527,1.03450212,124050.0,124040.0,1.04218581]
[1759818306733,0.68062212,124050.0,124040.0,1.04218581]
[1759818306931,1.67447764,124050.0,124040.0,1.04218581]
[1759818307136,1.67497488,124050.0,124040.0,1.04218581]
[1759818307340,1.17399616,124050.0,124040.0,0.58409468]
[1759818307548,1.7880736,124050.0,124040.0,0.38211475]
[1759818307755,2.2009536,124050.0,124040.0,0.30411989]
[1759818307958,1.28709488,124050.0,124040.0,0.12591525]
[1759818308166,1.38809488,124050.0,124040.0,0.12691525]
[1759818308382,0.93619936,124050.0,124040.0,0.12691525]
[1759818308613,1.42972962,124050.0,124040.0,0.12691525]
[1759818308821,1.43672962,124050.0,124040.0,0.12691525]
[1759818309029,1.53676962,124050.0,124040.0,0.12691525]
[1759818309234,1.1157877,124050.0,124040.0,0.12691525]
[1759818309435,1.45697502,124050.0,124040.0,0.12691525]
[1759818309587,1.68609502,124050.0,124040.0,0.12691525]
[1759818309803,1.68609502,124050.0,124040.0,1e-08]
[1759818309804,1.1407877,124050.0,124040.0,1e-08]
[1759818310006,0.8866677,124050.0,124040.0,1e-08]
[1759818310229,1.0157477,124050.0,124040.0,1e-08]
[1759818310585,1.58605502,124050.0,124040.0,1e-08]
[1759818310785,1.35697502,124050.0,124040.0,1e-08]
[1759818310983,1.0157877,124050.0,124040.0,1e-08]
[1759818312546,0.7066709,124050.0,124040.0,1e-08]
[1759818312962,0.6986709,124050.0,124040.0,0.22916001]
[1759818313734,0.69857361,124050.0,124040.0,1e-08]
[1759818315815,0.35561361,124050.0,124040.0,1e-08]
[1759818316270,0.35855361,124050.0,124040.0,1e-08]
[1759818316486,0.4342542,124050.0,124040.0,1e-08]
[1759818316911,0.4342542,124050.0,124040.0,0.22924001]
[1759818317353,0.35855361,124050.0,124040.0,0.22924001]
[1759818317812,0.35855361,124050.0,124040.0,1e-08]
[1759818318028,0.35855361,124050.0,124040.0,0.22924001]
[1759818318249,0.35855361,124050.0,124040.0,0.22920001]
[1759818318696,0.35855361,124050.0,124040.0,1e-08]
[1759818318905,0.4113302,124050.0,124040.0,1e-08]
[1759818319129,0.4113302,124050.0,124040.0,0.22920001]
[1759818320022,0.4113302,124050.0,124040.0,1e-08]
[1759818320241,0.7513302,124050.0,124040.0,1e-08]
[1759818320457,0.76840537,124050.0,124040.0,1e-08]
[1759818321638,0.76840537,124050.0,124030.0,1e-08]
[1759818321639,0.50123831,124040.0,124030.0,1e-08]
[1759818321850,0.16125131,124030.0,124020.0,1e-08]
[1759818322073,0.16125131,124030.0,124000.0,15.86637183]
[1759818322074,0.1,124010.0,124000.0,10.71975083]
[1759818322280,0.1,124010.0,124000.0,9.06724915]
[1759818322281,0.72422131,124010.0,124000.0,9.06724915]
[1759818322503,0.84974719,124010.0,124000.0,9.04307341]
[1759818322723,1.05819277,124010.0,124000.0,9.04307341]
[1759818322941,1.03397811,124010.0,124000.0,9.04307341]
[1759818323163,0.8365036,124010.0,124000.0,9.04307341]
[1759818323379,1.06680084,124010.0,124000.0,9.04307341]
[1759818323604,0.77151226,124010.0,124000.0,9.04307341]
[1759818323815,0.69422997,124010.0,124000.0,9.04307341]
[1759818324032,0.65922997,124010.0,124000.0,9.04307341]
[1759818324256,0.65922997,124010.0,124000.0,9.04520341]
[1759818324257,0.33722997,124010.0,124000.0,9.04520341]
[1759818324479,0.33722997,124010.0,124000.0,9.27825341]
[1759818324480,0.37222997,124010.0,124000.0,9.27825341]
[1759818324687,0.32012501,124010.0,124000.0,9.04833341]
[1759818324931,0.26712501,124010.0,124000.0,9.04833341]
[1759818325140,0.26712501,124010.0,124000.0,9.36209341]
[1759818325341,0.10585128,124010.0,124000.0,9.36209341]
[1759818325584,0.09844124,124010.0,124000.0,9.36213341]
[1759818325808,0.13344124,124010.0,124000.0,9.55357563]
[1759818326265,0.15144124,124010.0,124000.0,9.55357563]
[1759818326879,0.13344124,124010.0,124000.0,9.23977563]
[1759818327093,0.10344124,124010.0,124000.0,9.55357563]
[1759818327302,0.12844124,124010.0,124000.0,9.46977563]
[1759818327551,0.12844124,124010.0,124000.0,9.55357563]
[1759818327760,0.10344124,124010.0,124000.0,9.55437385]
[1759818327965,0.28371855,124010.0,124000.0,9.07928353]
[1759818328171,0.12244124,124010.0,124000.0,9.39304353]
[1759818328383,0.12244124,124010.0,124000.0,9.55433385]
[1759818329027,0.12244124,124010.0,124000.0,9.24057385]
[1759818329261,0.1222864,124010.0,124000.0,9.55433385]
[1759818329468,0.12971094,124010.0,124000.0,9.55433385]
[1759818330873,0.1222864,124010.0,124000.0,9.55433385]
[1759818331304,0.12971593,124010.0,124000.0,9.55433385]
[1759818331541,0.12971593,124010.0,124000.0,9.24057385]
[1759818331750,0.12971754,124010.0,124000.0,9.55429385]
[1759818332484,0.12971754,124010.0,124000.0,9.58057385]
[1759818332679,0.12971754,124010.0,124000.0,9.89425385]
[1759818333988,0.03192838,124010.0,124000.0,9.89425385]
[1759818334162,0.03192838,124010.0,124000.0,10.22949385]
[1759818334729,0.02449724,124010.0,124000.0,10.22949385]
[1759818335353,0.00960638,124010.0,124000.0,10.22949385]
[1759818335562,0.00960638,124010.0,124000.0,11.13515725]
[1759818335783,0.01160638,124010.0,124000.0,11.13515725]
[1759818336143,0.00498022,124010.0,124000.0,11.21827931]
[1759818336875,0.002,124010.0,124000.0,11.21827931]
[1759818337303,0.012,124010.0,124000.0,11.22027931]
[1759818337468,0.012,124010.0,124000.0,11.05782404]
[1759818338079,0.06536749,124040.0,124020.0,0.19141621]
[1759818338282,0.1559417,124040.0,124030.0,0.51035321]
[1759818338450,0.1559417,124040.0,124030.0,0.85035321]
[1759818338451,0.07281964,124040.0,124030.0,0.85035321]
[1759818339350,0.07681964,124040.0,124030.0,1.18555321]
[1759818339961,0.00745215,124040.0,124030.0,1.18555321]
[1759818340150,0.00053805,124050.0,124040.0,0.16123831]
[1759818340354,0.0911073,124050.0,124040.0,0.16447831]
[1759818340566,0.0911073,124050.0,124040.0,0.51026021]
[1759818340798,0.0911073,124050.0,124040.0,0.31350716]
[1759818341008,0.0911073,124050.0,124040.0,0.47474547]
[1759818341152,0.0911073,124050.0,124040.0,0.49541043]
[1759818341564,0.26333261,124050.0,124040.0,0.33717212]
[1759818341762,0.26333261,124050.0,124040.0,0.49841043]
[1759818341763,0.1021073,124050.0,124040.0,0.49841043]
[1759818342100,0.1021073,124050.0,124040.0,0.02466496]
[1759818342101,0.30798743,124050.0,124040.0,0.02466496]
[1759818342299,0.32287483,124050.0,124040.0,0.33822496]
[1759818343286,0.32287483,124050.0,124040.0,0.02466496]
[1759818343503,0.32287483,124050.0,124040.0,0.25454496]
[1759818344491,0.32287483,124050.0,124040.0,0.02466496]
[1759818344905,0.32287483,124050.0,124040.0,0.25450496]
[1759818345270,0.30397644,124050.0,124040.0,0.25450496]
[1759818345604,0.31885818,124050.0,124040.0,0.25450496]
[1759818346167,0.31885818,124050.0,124040.0,0.02466496]
[1759818346389,0.31885818,124050.0,124040.0,0.25446496]
[1759818346586,0.31885818,124050.0,124040.0,0.02466496]
[1759818346829,0.31885818,124050.0,124040.0,0.25450496]
[1759818347212,0.31885941,124050.0,124040.0,0.25450496]
[1759818349766,0.31885941,124050.0,124040.0,0.02466496]
[1759818350132,0.31885951,124050.0,124040.0,0.02466496]
[1759818352174,0.32685951,124050.0,124040.0,0.0226672]
[1759818352379,0.32685951,124050.0,124040.0,0.0247372]
[1759818352380,0.29025469,124050.0,124040.0,0.0247372]
[1759818352624,0.28820469,124050.0,124040.0,0.0247372]
[1759818352823,0.29025469,124050.0,124040.0,0.0247372]
[1759818353024,0.29025469,124050.0,124040.0,0.0226672]
[1759818353648,0.28020469,124050.0,124040.0,0.0279772]
[1759818354160,0.28020469,124050.0,124040.0,0.0581291]
[1759818354681,0.26532162,124050.0,124040.0,0.0581291]
[1759818355033,0.10409631,124050.0,124040.0,0.0581291]
[1759818355235,0.26532162,124050.0,124040.0,0.0581291]
[1759818355446,0.26532162,124050.0,124040.0,0.21936741]
[1759818355616,0.10409631,124050.0,124040.0,0.21936741]
[1759818355828,0.10409631,124050.0,124040.0,0.53296741]
[1759818356287,0.09664912,124050.0,124040.0,0.53296741]
[1759818356674,0.25787443,124050.0,124040.0,0.53296741]
[1759818356850,0.25787443,124050.0,124040.0,0.0581291]
[1759818357057,0.30058921,124050.0,124040.0,0.2879291]
[1759818357259,0.30263921,124050.0,124040.0,0.2524672]
[1759818357460,0.31303267,124050.0,124040.0,0.0226672]
[1759818357681,0.31303267,124050.0,124040.0,0.2524672]
[1759818358067,0.32795808,124050.0,124040.0,0.2524672]
[1759818358286,0.31303267,124050.0,124040.0,0.2525872]
[1759818360448,0.31303267,124050.0,124040.0,0.2525472]
[1759818360856,0.31303267,124050.0,124040.0,0.0226672]
[1759818361236,0.32796172,124050.0,124040.0,0.0226672]
[1759818363397,0.31303267,124050.0,124040.0,0.0226672]
[1759818364296,0.31303267,124050.0,124040.0,0.0276772]
[1759818364297,0.26533789,124050.0,124040.0,0.0276772]
[1759818364905,0.25787443,124050.0,124040.0,0.0276772]
[1759818365518,0.25787443,124050.0,124040.0,0.0578291]
[1759818365893,0.25987443,124050.0,124040.0,0.0548791]
[1759818366091,0.25787443,124050.0,124040.0,0.3685591]
[1759818366719,0.30058921,124050.0,124040.0,0.3685591]
[1759818367297,0.30058921,124050.0,124040.0,0.3685191]
[1759818367502,0.30258921,124050.0,124040.0,0.3685191]
[1759818368188,0.30258921,124050.0,124040.0,0.3664591]
[1759818368394,0.30565921,124050.0,124040.0,0.3362672]
[1759818368945,0.30565921,124050.0,124040.0,0.0226672]
[1759818369369,0.30565921,124050.0,124040.0,0.2524672]
[1759818369530,0.30565921,124050.0,124040.0,0.0226672]
[1759818369730,0.3131293,124050.0,124040.0,0.0226672]
[1759818370277,0.30565921,124050.0,124040.0,0.0226672]
[1759818370492,0.31313118,124050.0,124040.0,0.0226672]
[1759818375441,0.54281118,124050.0,124040.0,0.0226672]
[1759818377025,0.31313118,124050.0,124040.0,0.0226672]
[1759818377232,0.54281118,124050.0,124040.0,0.0226672]
[1759818377846,0.53933067,124050.0,124040.0,0.0226672]
[1759818378465,0.30965067,124050.0,124040.0,0.0226672]
[1759818378643,0.53929067,124050.0,124040.0,0.0226672]
[1759818380044,0.55424371,124050.0,124040.0,0.0226672]
[1759818380812,0.53929067,124050.0,124040.0,0.0226672]
[1759818381025,0.55424407,124050.0,124040.0,0.0226672]
[1759818382409,0.53929067,124050.0,124040.0,0.0226672]
[1759818383881,0.30965067,124050.0,124040.0,0.0226672]
[1759818384086,0.53925067,124050.0,124040.0,0.0226672]
[1759818384453,0.55420502,124050.0,124040.0,0.0226672]
[1759818385448,0.55421208,124050.0,124040.0,0.0226672]
[1759818386229,0.50125131,124030.0,124020.0,4.987e-05]
[1759818386431,0.91640209,124030.0,124020.0,4.987e-05]
[1759818386740,0.92147209,124030.0,124020.0,0.00078752]
[1759818387352,0.92947209,124030.0,124020.0,0.00078752]
[1759818388959,0.93447209,124030.0,124020.0,0.00278752]
[1759818389162,0.93443209,124030.0,124020.0,0.00278752]
[1759818389368,0.84936529,124030.0,124020.0,0.00779752]
[1759818389786,0.85836529,124030.0,124020.0,0.00278752]
[1759818389990,0.86147529,124030.0,124020.0,0.00278752]
[1759818390420,0.63187529,124030.0,124020.0,0.00278752]
[1759818390617,0.63187529,124030.0,124020.0,0.00779752]
[1759818390618,0.59637337,124030.0,124020.0,0.00779752]
[1759818391350,0.25637337,124030.0,124020.0,0.00779752]
[1759818391930,0.31631053,124030.0,124020.0,0.00779752]
[1759818392145,0.31841053,124030.0,124020.0,0.00278752]
[1759818392544,0.31631053,124030.0,124020.0,0.00479752]
[1759818392764,0.37915735,124030.0,124020.0,0.00479752]
[1759818392901,0.37915735,124030.0,124020.0,0.00792752]
[1759818393649,0.31631053,124030.0,124020.0,0.00792752]
[1759818394081,0.31834053,124030.0,124020.0,0.00278752]
[1759818395524,0.32151053,124030.0,124020.0,0.00278752]
[1759818395954,0.66151053,124030.0,124020.0,0.00278752]
[1759818396508,0.66897771,124030.0,124020.0,0.00278752]
[1759818396729,0.75644166,124030.0,124020.0,0.00278752]
[1759818397109,0.77137596,124030.0,124020.0,0.00278752]
[1759818397736,0.50127731,124010.0,124000.0,8.88061814]
[1759818397958,0.81906937,124010.0,124000.0,8.88066801]
[1759818398242,0.88189641,124010.0,124000.0,8.88066801]
[1759818398443,0.89682991,124010.0,124000.0,8.88066801]
[1759818399010,0.9042935,124010.0,124000.0,8.88066801]
[1759818399208,0.9102935,124010.0,124000.0,8.88066801]
[1759818399381,0.90282991,124010.0,124000.0,8.88066801]
[1759818399767,0.90582991,124010.0,124000.0,8.88766801]
[1759818400191,0.91328924,124010.0,124000.0,8.88766801]
[1759818400390,0.90582991,124010.0,124000.0,8.88766801]
[1759818400826,0.67622991,124010.0,124000.0,8.88766801]
[1759818401248,0.91328769,124010.0,124000.0,8.88766801]
[1759818401449,0.90582991,124010.0,124000.0,8.88766801]
[1759818401797,0.67622991,124010.0,124000.0,8.88766801]
[1759818402056,0.90582991,124010.0,124000.0,8.88766801]
[1759818402258,0.91328651,124010.0,124000.0,8.88766801]
[1759818402458,0.90582991,124010.0,124000.0,8.88766801]
[1759818403195,0.9132857,124010.0,124000.0,8.88766801]
[1759818403437,0.9132857,124010.0,124000.0,8.88806714]
[1759818405205,0.9212857,124010.0,124000.0,8.88806714]
[1759818405967,0.6916857,124010.0,124000.0,8.88806714]
[1759818406109,0.9212057,124010.0,124000.0,8.88806714]
[1759818406623,0.9213257,124010.0,124000.0,8.88806714]
[1759818407932,0.6886057,124010.0,124000.0,8.88806714]
[1759818408095,0.9162557,124010.0,124000.0,8.89309714]
[1759818408295,0.6866157,124010.0,124000.0,8.89309714]
[1759818408496,0.9162157,124010.0,124000.0,8.89010714]
[1759818408762,0.9182057,124010.0,124000.0,8.88806714]
[1759818409060,0.9182457,124010.0,124000.0,8.88806714]
[1759818409290,0.85342866,124010.0,124000.0,8.89309714]
[1759818409789,0.85541866,124010.0,124000.0,8.78806714]
[1759818409991,0.62577866,124010.0,124000.0,8.78806714]
[1759818410125,0.85342866,124010.0,124000.0,8.79309714]
[1759818410324,0.8747419,124010.0,124000.0,8.79309714]
[1759818410542,0.28378866,124010.0,124000.0,8.79309714]
[1759818410790,0.28379022,124010.0,124000.0,8.79309714]
[1759818410978,0.26833287,124010.0,124000.0,8.79309714]
[1759818411198,0.48303937,124010.0,124000.0,8.79309714]
[1759818411371,0.25339937,124010.0,124000.0,8.79309714]
[1759818411576,0.48303937,124010.0,124000.0,8.79309714]
[1759818411924,0.25339937,124010.0,124000.0,8.79309714]
[1759818412102,0.48299937,124010.0,124000.0,8.79309714]
[1759818412315,0.4979211,124010.0,124000.0,8.79309714]
[1759818414395,0.4979211,124010.0,124000.0,9.02265714]
[1759818414941,0.56384079,124010.0,124000.0,9.02265714]
[1759818415099,0.4979211,124010.0,124000.0,9.02265714]
[1759818416303,0.48299937,124010.0,124000.0,9.02265714]
[1759818416710,0.25339937,124010.0,124000.0,9.02265714]
[1759818417051,0.48295937,124010.0,124000.0,9.02265714]
[1759818418461,0.48295937,124010.0,124000.0,8.97265714]
[1759818418641,0.25339937,124010.0,124000.0,9.00280904]
[1759818419931,0.09212206,124010.0,124000.0,9.16409936]
[1759818420370,0.09212206,124010.0,124000.0,8.93453936]
[1759818420574,0.25339937,124010.0,124000.0,9.08656904]
[1759818420776,0.25339937,124010.0,124000.0,9.24785936]
[1759818421155,0.25339937,124010.0,124000.0,8.93453936]
[1759818421351,0.25339937,124010.0,124000.0,9.08652904]
[1759818421551,0.25339937,124010.0,124000.0,8.93453936]
[1759818421759,0.25339937,124010.0,124000.0,9.16401936]
[1759818421961,0.09212206,124010.0,124000.0,9.24781936]
[1759818423293,0.25339937,124010.0,124000.0,9.24777936]
[1759818424293,0.25339937,124010.0,124000.0,8.93453936]
[1759818424470,0.25339937,124010.0,124000.0,9.16393936]
[1759818424670,0.25339937,124010.0,124000.0,9.24773936]
[1759818426904,0.25339937,124010.0,124000.0,8.93453936]
[1759818427111,0.25339937,124010.0,124000.0,9.24769936]
[1759818427534,0.25339937,124010.0,124000.0,9.16389936]
[1759818427735,0.09212206,124010.0,124000.0,9.24769936]
[1759818427931,0.25339937,124010.0,124000.0,9.24769936]
[1759818428554,0.09212206,124010.0,124000.0,9.24769936]
[1759818428954,0.25339937,124010.0,124000.0,9.24769936]
[1759818429154,0.09212206,124010.0,124000.0,9.58769936]
[1759818429571,0.09212206,124010.0,124000.0,9.61190004]
[1759818429792,0.25339937,124010.0,124000.0,9.13744972]
[1759818429991,0.09212206,124010.0,124000.0,9.58769936]
[1759818430172,0.08612206,124010.0,124000.0,9.58769936]
[1759818430492,0.25039937,124010.0,124000.0,9.58769936]
[1759818430699,0.08912206,124010.0,124000.0,9.58769936]
[1759818431122,0.08612206,124010.0,124000.0,9.58069936]
[1759818431453,0.08812206,124010.0,124000.0,9.58669936]
[1759818431652,0.08812206,124010.0,124000.0,9.53669936]
[1759818432802,0.08812206,124010.0,124000.0,9.56090158]
[1759818434010,0.24939937,124010.0,124000.0,9.47710158]
[1759818434212,0.08812206,124010.0,124000.0,9.56090158]
[1759818436368,0.24939937,124010.0,124000.0,9.24774158]
[1759818436543,0.24939937,124010.0,124000.0,9.56086158]
[1759818437388,0.24939937,124010.0,124000.0,9.56082158]
[1759818439205,0.24939937,124010.0,124000.0,9.53661936]
[1759818440418,0.24939937,124010.0,124000.0,9.22353936]
[1759818440581,0.24939937,124010.0,124000.0,9.19649936]
[1759818442110,0.24939937,124010.0,124000.0,9.11269936]
[1759818442310,0.24939937,124010.0,124000.0,9.19649936]
[1759818442741,0.28528399,124010.0,124000.0,8.71721904]
[1759818442969,0.25459937,124010.0,124000.0,8.77086714]
[1759818443176,0.25459937,124010.0,124000.0,8.80101904]
[1759818443387,0.25459937,124010.0,124000.0,9.03017904]
[1759818444143,0.25459937,124010.0,124000.0,8.68706714]
[1759818444365,0.25459937,124010.0,124000.0,8.91626714]
[1759818444569,0.29618583,124010.0,124000.0,8.68706714]
[1759818444772,0.29618583,124010.0,124000.0,8.91626714]
[1759818445428,0.29618583,124010.0,124000.0,8.68706714]
[1759818445559,0.29618583,124010.0,124000.0,8.91626714]
[1759818445779,0.25459937,124010.0,124000.0,8.91626714]
[1759818447792,0.25459937,124010.0,124000.0,8.68706714]
[1759818447960,0.27702169,124010.0,124000.0,8.68706714]
[1759818448164,0.27702169,124010.0,124000.0,8.91626714]
[1759818448813,0.27202169,124010.0,124000.0,8.91026714]
[1759818448951,0.34707038,124010.0,124000.0,8.91026714]
[1759818449155,0.35607038,124010.0,124000.0,8.91226714]
[1759818449377,0.28902169,124010.0,124000.0,8.91226714]
[1759818449755,0.28902169,124010.0,124000.0,8.91231695]
[1759818450229,0.28382169,124010.0,124000.0,8.91738695]
[1759818450387,0.2763476,124010.0,124000.0,8.91738695]
[1759818450584,0.2784476,124010.0,124000.0,8.91436695]
[1759818450972,0.26349937,124010.0,124000.0,8.91436695]
[1759818451382,0.26349937,124010.0,124000.0,8.91456695]
[1759818451560,0.28985403,124010.0,124000.0,8.91456695]
[1759818453598,0.26139937,124010.0,124000.0,8.91752695]
[1759818455427,0.26139937,124010.0,124000.0,8.91748695]
[1759818457654,0.26336937,124010.0,124000.0,8.91452695]